Cogmind - Beta 13 @@@ ROGUE MODE // 2024.04.04 @ 22:00:13 Player: _An Result: Destroyed by G-47 Trooper with Particle Gun Performance ------------- Evolutions (2) 1000 Regions Visited (8) 1600 Robots Destroyed (28) 140 Value Destroyed (701) 701 Prototype IDs (23) 460 Alien Tech Used (0) 0 Bonus (500) 500 TOTAL SCORE: 4401 Bonus ------- Entered Garrisons 200 Aligned with FarCom 300 Cogmind --------- Core Integrity 0/550 Matter 8/300 Energy 100/100 System Corruption 0% Temperature Cool (9) Movement Core (100) Ox1 Location -8/Garrison Parts ------- > --- POWER (1) -------- (None) > --- PROPULSION (4) --- (None) > --- UTILITY (4) ------ Small Storage Unit > --- WEAPON (2) ------- (None) > --- INVENTORY (8) ---- Aluminum Leg Advanced Weight Redist. System PSU Rigger Light Cannon Light Cannon Mining Claw Peak State ------------ > --- POWER ------------ Light Nuclear Core > --- PROPULSION ------- Carbon-fiber Leg Flight Unit > --- UTILITY ---------- Small Storage Unit Advanced Weight Redist. System > --- WEAPON ----------- Grenade Launcher > --- INVENTORY -------- Light Nuclear Core Aluminum Leg Improved Hover Unit Advanced Weight Redist. System PSU Rigger Light Cannon Light Cannon Mining Claw [Rating: 14] Favorites ----------- Power Ion Engine Engine Ion Engine Power Core Light Nuclear Core Propulsion Aluminum Leg Leg Aluminum Leg Hover Unit Improved Hover Unit Flight Unit Flight Unit Utility Small Storage Unit Device Advanced Weight Redist. System Storage Small Storage Unit Weapon Light Cannon Energy Gun Medium Laser Ballistic Cannon Light Cannon Launcher Grenade Launcher Build | -11 -10 -10 -9 -9 -9 -8 -8 -8 ------- Run | Yrd Mat Min Mat Min Exi Min Mat Gar Slots Evolved 4 | . . . 2 . . . 2 . Power . | . . . . . . . . . Propulsion 2 | . . . 1 . . . 1 . Utility 2 | . . . 1 . . . 1 . Weapon . | . . . . . . . . . Parts Attached 21 | 6 2 . . 2 . 6 . 5 Power 2 | 1 . . . . . . . 1 Engine 1 | 1 . . . . . . . . Core 1 | . . . . . . . . 1 Reactor . | . . . . . . . . . Propulsion 10 | 2 . . . 1 . 4 . 3 Treads . | . . . . . . . . . Leg 3 | 2 . . . . . . . 1 Wheel . | . . . . . . . . . Hover 2 | . . . . 1 . . . 1 Flight 5 | . . . . . . 4 . 1 Utility 3 | 1 . . . 1 . . . 1 Device 2 | . . . . 1 . . . 1 Storage 1 | 1 . . . . . . . . Processor . | . . . . . . . . . Hackware . | . . . . . . . . . Protection . | . . . . . . . . . Artifact . | . . . . . . . . . Weapon 6 | 2 2 . . . . 2 . . Energy Gun 2 | 2 . . . . . . . . Energy Cannon . | . . . . . . . . . Ballistic Gun . | . . . . . . . . . Ballistic Cannon 3 | . 2 . . . . 1 . . Launcher 1 | . . . . . . 1 . . Special Weapon . | . . . . . . . . . Impact Weapon . | . . . . . . . . . Slashing Weapon . | . . . . . . . . . Piercing Weapon . | . . . . . . . . . Special Melee Weapon . | . . . . . . . . . Unidentified Prototypes . | . . . . . . . . . Parts Lost 11 | . . . 1 . . 1 . 9 Power 1 | . . . . . . . . 1 Propulsion 8 | . . . 1 . . 1 . 6 Utility 1 | . . . . . . . . 1 Weapon 1 | . . . . . . . . 1 Highest Loss Streak 7 | . . . 1 . . 1 . 7 To Critical Strikes . | . . . . . . . . . Average Slot Usage (%) 69 | . 85 85 57 77 77 73 . 47 Engine 10 | . 14 14 11 11 11 11 . 5 Leg 14 | . 28 28 13 11 11 1 . 3 Hover 3 | . . . . 11 11 1 . . Flight 3 | . . . . . . 20 . 12 Device 5 | . . . . 11 11 11 . 8 Storage 11 | . 14 14 11 11 11 11 . 9 Energy Gun 2 | . 22 . . . . . . . Ballistic Cannon 16 | . 5 28 22 22 22 5 . . Launcher 1 | . . . . . . 11 . 7 Naked Turns . | . . . . . . . . . Heaviest Build 16 | 14 16 16 16 16 16 16 13 13 Greatest Support 24 | 20 20 20 20 16 16 21 21 24 Greatest Overweight (x) 2 | 1 . . 1 1 . 1 . 2 Average Overweight (x) . | . . . . . . . . . Largest Inventory Capacity 8 | 8 8 8 8 8 8 8 8 8 Average Capacity 7 | 7 8 8 8 8 8 8 8 8 Most Carried 8 | . 3 3 7 7 6 8 8 8 Average Carried 4 | . 1 3 4 5 5 7 8 7 Final Capacity 8 | 8 8 8 8 8 8 8 8 8 Final Carried 8 | . 3 3 7 6 5 8 8 6 Class Distribution -------------------- 100% | Mutant Dominant Class ---------------- Mutant | -10/Materials Mutant | -10/Mines Mutant | -9/Materials Mutant | -9/Mines Mutant | -9/Exiles Mutant | -8/Mines Mutant | -8/Materials Mutant | -8/Garrison Resources | -11 -10 -10 -9 -9 -9 -8 -8 -8 ----------- Run | Yrd Mat Min Mat Min Exi Min Mat Gar Matter Collected 460 | 151 92 . 72 46 . 39 . 60 Remotely . | . . . . . . . . . Salvage Created 477 | . 92 . 197 . . 64 . 124 Parts 34 | . 4 . 11 . . 10 . 9 Haulers Intercepted . | . . . . . . . . . Recyclers Shooed . | . . . . . . . . . Parts Field Recycled . | . . . . . . . . . Retrieved Matter . | . . . . . . . . . Parts Self-Destructed . | . . . . . . . . . Prevented . | . . . . . . . . . Kills | -11 -10 -10 -9 -9 -9 -8 -8 -8 ------- Run | Yrd Mat Min Mat Min Exi Min Mat Gar Combat Hostiles Destroyed 26 | . 2 . 6 . . 10 . 8 Guns 2 | . 2 . . . . . . . Cannons 6 | . . . 6 . . . . . AOE 18 | . . . . . . 10 . 8 Classes Destroyed 5 | . 1 . 1 . . 2 . 1 Worker 1 | . . . . . . 1 . . Operator 1 | . . . 1 . . . . . Swarmer 13 | . . . . . . 10 . 3 Grunt 12 | . 2 . 6 . . . . 4 Hunter 1 | . . . . . . . . 1 Best Kill Streak 6 | . 2 . 3 . . 6 . 4 Combat Bots Only 6 | . 2 . 3 . . 6 . 4 Max Kills in Single Turn 3 | . 1 . 1 . . 3 . 2 Gunslinging . | . . . . . . . . . Exploded 3 | . . . . . . 3 . 2 Melee . | . . . . . . . . . Uniques/NPCs Destroyed . | . . . . . . . . . Combat | -11 -10 -10 -9 -9 -9 -8 -8 -8 -------- Run | Yrd Mat Min Mat Min Exi Min Mat Gar Hostile Shots Fired 168 | . 11 . 34 . . 14 . 109 Missed 61 | . 2 . 10 . . 6 . 43 Damage Taken 1451 | . 116 . 332 . . 80 . 923 Core 660 | . 33 . 55 . . 16 . 556 Absorbed by Shields 47 | . . . . . . . . 47 Core Remaining (%) 89 | 100 . 86 . . . 82 . . Volleys Fired 50 | . 7 . 19 . . 9 . 15 Largest 2 | . 2 . 2 . . 1 . 1 Hottest 100 | . 100 . 70 . . 30 . 30 Shots Fired 76 | . 14 . 38 . . 9 . 15 Gun 14 | . 14 . . . . . . . Cannon 38 | . . . 38 . . . . . Launcher 24 | . . . . . . 9 . 15 Special . | . . . . . . . . . Kinetic 38 | . . . 38 . . . . . Thermal 14 | . 14 . . . . . . . Explosive 24 | . . . . . . 9 . 15 Electromagnetic . | . . . . . . . . . Robot Hit Streak 7 | . 7 . 6 . . 2 . 7 Robot Miss Streak 5 | . 2 . 5 . . 1 . 2 Penetration Max . | . . . . . . . . . Secondary Targets 1 | . 1 . . . . . . . Max Gunslinging Chain 1 | . 1 . . . . . . . Shots Hit Robots 44 | . 10 . 20 . . 4 . 10 Core Hits 44 | . 5 . 9 . . 12 . 18 Critical Kills . | . . . . . . . . . Critical Parts Destroyed . | . . . . . . . . . Critical Strikes 3 | . 1 . 2 . . . . . Burn 1 | . 1 . . . . . . . Blast 2 | . . . 2 . . . . . Melee Attacks . | . . . . . . . . . Impact . | . . . . . . . . . Slashing . | . . . . . . . . . Piercing . | . . . . . . . . . Sneak Attacks . | . . . . . . . . . Combat Hostiles . | . . . . . . . . . Follow-up Attacks . | . . . . . . . . . Damage Inflicted 1766 | . 124 . 362 . . 532 . 748 Guns 124 | . 124 . . . . . . . Cannons 362 | . . . 362 . . . . . Explosions 1280 | . . . . . . 532 . 748 Melee . | . . . . . . . . . Ramming . | . . . . . . . . . Kinetic 362 | . . . 362 . . . . . Thermal 124 | . 124 . . . . . . . Explosive 1280 | . . . . . . 532 . 748 Electromagnetic . | . . . . . . . . . Impact . | . . . . . . . . . Slashing . | . . . . . . . . . Piercing . | . . . . . . . . . Highest Corruption . | . . . . . . . . . Average Corruption . | . . . . . . . . . Corruption Purged . | . . . . . . . . . Corruption Blocked . | . . . . . . . . . Overload Shots . | . . . . . . . . . Overflow Damage 69 | . . . 4 . . 65 . . Projectiles 4 | . . . 4 . . . . . Explosions 65 | . . . . . . 65 . . Melee . | . . . . . . . . . Knockbacks 3 | . . . 3 . . . . . Impact . | . . . . . . . . . Kinetic 3 | . . . 3 . . . . . Secondary . | . . . . . . . . . Self-Inflicted Damage 72 | . . . . . . 23 . 49 Shots 5 | . . . . . . 2 . 3 Rammed . | . . . . . . . . . Targets Rammed . | . . . . . . . . . Kicked . | . . . . . . . . . Crushed . | . . . . . . . . . Highest Temperature 348 | . 348 . 84 . . . . 14 Average Temperature 102 | . 183 . 37 . . . . 10 Received Heat Transfer 612 | . 84 . 186 . . . . 342 Effects 1 | . 1 . . . . . . . Energy Bleed 1 | . 1 . . . . . . . Siege Activations . | . . . . . . . . . Robots Corrupted . | . . . . . . . . . Combat Hostiles . | . . . . . . . . . Parts Fried . | . . . . . . . . . Impact Corruptions . | . . . . . . . . . Robots Melted . | . . . . . . . . . Combat Hostiles . | . . . . . . . . . Parts Melted 2 | . 1 . . . . . . 1 Heat Transferred 444 | . 444 . . . . . . . Parts Sabotaged . | . . . . . . . . . Parts Stolen . | . . . . . . . . . Parts Stripped . | . . . . . . . . . Power Chain Reactions . | . . . . . . . . . Alert | -11 -10 -10 -9 -9 -9 -8 -8 -8 ------- Run | Yrd Mat Min Mat Min Exi Min Mat Gar Peak Influence 283 | . 76 29 156 60 . 283 109 266 Initial 109 | . . 29 11 60 . . 109 73 Average 86 | . 35 29 86 60 . 173 109 189 Maximum Alert Level 1 | . . . . . . 1 . 1 Low Security (%) 87 | 100 100 100 100 100 . 79 100 39 Level 1 12 | . . . . . . 20 . 60 Level 2 . | . . . . . . . . . Level 3 . | . . . . . . . . . Level 4 . | . . . . . . . . . Level 5 . | . . . . . . . . . High Security . | . . . . . . . . . Max Security . | . . . . . . . . . Squads Dispatched 1 | . . . 1 . . . . . Investigation . | . . . . . . . . . Extermination . | . . . . . . . . . Reinforcement 1 | . . . 1 . . . . . Assault . | . . . . . . . . . Garrison . | . . . . . . . . . Intercept . | . . . . . . . . . Searches Triggered . | . . . . . . . . . Construction Impeded . | . . . . . . . . . Haulers Reinforced . | . . . . . . . . . Active Scanning Responses . | . . . . . . . . . Cargo Convoy Interrupts . | . . . . . . . . . Stealth | -11 -10 -10 -9 -9 -9 -8 -8 -8 --------- Run | Yrd Mat Min Mat Min Exi Min Mat Gar Distress Signals 1 | . 1 . . . . . . . Communications Jammed . | . . . . . . . . . Distress Signals . | . . . . . . . . . Times Spotted 39 | . 4 . 9 . . 10 . 16 Peak Tracking Total 10 | . 4 . 6 . . 4 . 10 Tactical Retreats 1 | . . . . . . 1 . . Traps | -11 -10 -10 -9 -9 -9 -8 -8 -8 ------- Run | Yrd Mat Min Mat Min Exi Min Mat Gar Traps Triggered 2 | . . . . . . . . 2 Indirectly . | . . . . . . . . . Trap Hack Attempts . | . . . . . . . . . Triggered . | . . . . . . . . . Disarmed . | . . . . . . . . . Reprogrammed . | . . . . . . . . . Reused . | . . . . . . . . . Traps Extracted . | . . . . . . . . . Installed . | . . . . . . . . . Triggered . | . . . . . . . . . Objects Rigged 1 | . . . . . . . . 1 Exploded 1 | . . . . . . . . 1 Machines | -11 -10 -10 -9 -9 -9 -8 -8 -8 ---------- Run | Yrd Mat Min Mat Min Exi Min Mat Gar Machines Disabled . | . . . . . . . . . Max in Single Turn . | . . . . . . . . . Machines Repaired . | . . . . . . . . . Machines Dismantled . | . . . . . . . . . Machines Sabotaged . | . . . . . . . . . Overloaded Fab Kills . | . . . . . . . . . Hacking | -11 -10 -10 -9 -9 -9 -8 -8 -8 --------- Run | Yrd Mat Min Mat Min Exi Min Mat Gar Machines Accessed 5 | . 2 . . . 1 . 1 1 Terminals 3 | . 2 . . . . . . 1 Fabricators . | . . . . . . . . . Repair Stations . | . . . . . . . . . Recycling Units . | . . . . . . . . . Scanalyzers . | . . . . . . . . . Garrison Access 1 | . . . . . . . 1 . Total Hacks 10 | . 6 . . . 1 . 1 2 Successful 5 | . 3 . . . 1 . 1 . Failed 5 | . 3 . . . . . . 2 Catastrophic 4 | . 2 . . . . . . 2 Database Lockouts . | . . . . . . . . . Manual 9 | . 6 . . . 1 . . 2 Terminals 8 | . 6 . . . . . . 2 Fabricators . | . . . . . . . . . Repair Stations . | . . . . . . . . . Recycling Units . | . . . . . . . . . Scanalyzers . | . . . . . . . . . Garrison Access 1 | . . . . . . . 1 . Terminal Hacks 2 | . 1 . . . 1 . . . Branch Access Points 1 | . 1 . . . . . . . Derelict Proto ID Bank 1 | . . . . . 1 . . . Fabricator Hacks . | . . . . . . . . . Repair Station Hacks . | . . . . . . . . . Recycling Unit Hacks . | . . . . . . . . . Scanalyzer . | . . . . . . . . . Garrison Access Hacks 1 | . . . . . . . 1 . Unlock Access 1 | . . . . . . . 1 . Unauthorized Hacks 2 | . 2 . . . . . . . Terminals 2 | . 2 . . . . . . . Botnet 2 | . 2 . . . . . . . Fabricators . | . . . . . . . . . Repair Stations . | . . . . . . . . . Recycling Units . | . . . . . . . . . Scanalyzers . | . . . . . . . . . Garrison Access . | . . . . . . . . . Data Cores Recovered . | . . . . . . . . . Used . | . . . . . . . . . Hacking Detections 4 | . 2 . . . . . 1 1 Full Trace Events 1 | . . . . . . . . 1 Feedback Events . | . . . . . . . . . Feedback Blocked . | . . . . . . . . . Robot Schematics Acquired . | . . . . . . . . . Robots Built . | . . . . . . . . . Authchips . | . . . . . . . . . Time . | . . . . . . . . . Total Robot Build Rating . | . . . . . . . . . Part Schematics Acquired . | . . . . . . . . . Parts Built . | . . . . . . . . . Authchips . | . . . . . . . . . Time . | . . . . . . . . . Total Part Build Rating . | . . . . . . . . . Parts Repaired . | . . . . . . . . . Time . | . . . . . . . . . Parts Recycled . | . . . . . . . . . Recycled Matter . | . . . . . . . . . Retrieved Matter . | . . . . . . . . . Retrieved Components . | . . . . . . . . . Parts Scanalyzed . | . . . . . . . . . Part Schematics Acquired . | . . . . . . . . . Parts Damaged . | . . . . . . . . . Bothacking | -11 -10 -10 -9 -9 -9 -8 -8 -8 ------------ Run | Yrd Mat Min Mat Min Exi Min Mat Gar Used RIF Installer . | . . . . . . . . . Robots Hacked . | . . . . . . . . . Non-combat . | . . . . . . . . . Combat . | . . . . . . . . . Robot Hacks Applied . | . . . . . . . . . Relay Couplers Released . | . . . . . . . . . Fabnet Peak Effective % . | . . . . . . . . . Robots Rewired . | . . . . . . . . . Allies Hacked . | . . . . . . . . . Hacks Repelled . | . . . . . . . . . Allies | -11 -10 -10 -9 -9 -9 -8 -8 -8 -------- Run | Yrd Mat Min Mat Min Exi Min Mat Gar Total Allies 1 | . . . . 1 . . . . Largest Group 1 | . . . . 1 . . . . Highest-Rated Group 31 | . . . . 31 . . . . Highest-Rated Ally 31 | . . . . 31 . . . . Total Orders . | . . . . . . . . . Ally Attacks . | . . . . . . . . . Total Damage . | . . . . . . . . . Kills . | . . . . . . . . . Allies Corrupted . | . . . . . . . . . Allies Melted . | . . . . . . . . . Intel | -11 -10 -10 -9 -9 -9 -8 -8 -8 ------- Run | Yrd Mat Min Mat Min Exi Min Mat Gar Robot Analysis Total . | . . . . . . . . . Derelict Logs Recovered 1 | . . . . 1 . . . . Drone Launches . | . . . . . . . . . Drone Recoveries . | . . . . . . . . . Exploration | -11 -10 -10 -9 -9 -9 -8 -8 -8 ------------- Run | Yrd Mat Min Mat Min Exi Min Mat Gar Turns Passed 1196 | 60 149 137 264 121 220 59 3 183 Spaces Moved 1140 | 49 103 115 116 166 310 75 8 198 Core 33 | 13 . . . . . . . 20 Treads . | . . . . . . . . . Legs 412 | 36 103 115 116 2 . . . 40 Wheels . | . . . . . . . . . Hover 495 | . . . . 164 310 6 . 15 Flight 200 | . . . . . . 69 8 123 Fastest Speed 34 | 50 120 120 120 70 70 34 34 34 Average Speed 87 | 106 120 120 165 71 70 40 34 61 Slowest Speed 190 | 120 120 120 190 190 70 120 34 150 Overloaded Moves . | . . . . . . . . . Propulsion Burnouts . | . . . . . . . . . Robots Hopped 2 | . . . . . . 1 . 1 Cave-ins Triggered . | . . . . . . . . . Exploration Rate (%) 28 | 3 31 42 12 50 60 20 1 36 Regions Visited 8 Branch Regions 4 Pre-discovered Areas . | . . . . . . . . . Known Exits Taken 2 | . 1 . . . . . 1 . Unknown Exits Taken 6 | 1 . 1 1 1 1 1 . . Scrap Searched 2 | . . . . 2 . . . . Spaces Dug . | . . . . . . . . . Terrain Destroyed 90 | . . . . . . 64 . 26 Melee . | . . . . . . . . . Projectile . | . . . . . . . . . AOE 90 | . . . . . . 64 . 26 Terrain Rammed . | . . . . . . . . . Walls Destroyed . | . . . . . . . . . Machines Disabled . | . . . . . . . . . Actions | -11 -10 -10 -9 -9 -9 -8 -8 -8 --------- Run | Yrd Mat Min Mat Min Exi Min Mat Gar Total 1258 | 54 114 114 151 168 314 93 7 243 Wait 13 | . . . 13 . . . . . Move 1127 | 48 102 114 115 165 309 72 7 195 Hop 2 | . . . . . . 1 . 1 Pick Up 8 | . 1 . 4 1 2 . . . Fast Attach 15 | 6 2 . . . . 4 . 3 Attach 6 | . . . . 2 . 2 . 2 Detach 8 | . 2 . . . . 5 . 1 Swap . | . . . . . . . . . Drop 5 | . . . . . 3 . . 2 Fire 50 | . 7 . 19 . . 9 . 15 Melee . | . . . . . . . . . Ram . | . . . . . . . . . Kick . | . . . . . . . . . Crush . | . . . . . . . . . Escape Stasis 23 | . . . . . . . . 23 Rewire . | . . . . . . . . . Trap 1 | . . . . . . . . 1 Miscellaneous . | . . . . . . . . . Route ------- -11/Scrapyard -10/Materials -10/Mines -9/Materials -9/Mines (discovered 2 exits: *Exi / [*Zio]) -9/Exiles (discovered 2 exits: [*Min x2]) -8/Mines -8/Materials (discovered 2 exits: Fac / Gar) -8/Garrison (discovered 1 exit: [*Mat]) History --------- Turn | Location | Event 4 | -11/Scrapyard | Discovered new exit (range 15) 61 | -11/Scrapyard | Entered Materials 88 | -10/Materials | Identified exit to Mines 210 | -10/Materials | Entered Mines 290 | -10/Mines | Met a Derelict bent on vengeance 300 | -10/Mines | Build established: Mutant 329 | -10/Mines | Discovered new exit (range 15) 347 | -10/Mines | Entered Materials 347 | -9/Materials | Evolved 2 slots: Propulsion x1, Utility x1 583 | -9/Materials | Discovered new exit (range 16) 611 | -9/Materials | Entered Mines 612 | -9/Mines | A Derelict revealed a hidden shortcut to a safe place 636 | -9/Mines | Learned location of 1 exit from Materials 640 | -9/Mines | Received a Mining Laser from a helpful Derelict 729 | -9/Mines | Deemed a non-threat by the Exiles lab entrance 730 | -9/Mines | Discovered new exit (range 5) 732 | -9/Mines | Entered Exiles 743 | -9/Exiles | Discovered new exit (range 15) 751 | -9/Exiles | Met 8R-AWN 761 | -9/Exiles | Met EX-HEX 781 | -9/Exiles | Met EX-BIN 803 | -9/Exiles | Aligned with FarCom system 804 | -9/Exiles | Given EX-Vault access code 821 | -9/Exiles | Opened EX-Vault 827 | -9/Exiles | Found Chronowheel 843 | -9/Exiles | Warned to stay clear of 0b10 Research branches 885 | -9/Exiles | Found PSU Rigger 921 | -9/Exiles | Met EX-DEC 947 | -9/Exiles | Discovered new exit (range 10) 952 | -9/Exiles | Left Exiles lab with PSU Rigger 952 | -9/Exiles | Entered Mines 999 | -8/Mines | Discovered new exit (range 11) 1011 | -8/Mines | Entered Materials 1011 | -8/Materials | Evolved 2 slots: Propulsion x1, Utility x1 1012 | -8/Materials | Identified exit to Factory 1014 | -8/Materials | Identified exit to Garrison 1014 | -8/Materials | Entered Garrison 1056 | -8/Garrison | Triggered checkpoint 1074 | -8/Garrison | Triggered checkpoint 1168 | -8/Garrison | Discovered new exit (range 14) 1178 | -8/Garrison | Attempted to access garrison exit controls, blocked by remote lockdown 1185 | -8/Garrison | Core integrity fell below 50% 1195 | -8/Garrison | Core integrity fell below 20% 1197 | -8/Garrison | Destroyed by G-47 Trooper with Particle Gun Last Messages --------------- Carbon-fiber Leg destroyed. Flight Unit destroyed. Adv. Weight Redist. System destroyed. Critical hit (Burn: +37). EXIT=FOUND Y-45 Defender suffers critical hit (Burn). Imp. Hover Unit destroyed. Attempting to access garrison exit controls... Remote lockdown engaged. Dropped Lgt. Nuclear Core. Rigged Lgt. Nuclear Core with PSU Rigger. Rigged Lgt. Nuclear Core explodes. S-10 Pest destroyed. Flight Unit melted. S-10 Pest destroyed. Acquired 2 matter. Acquired Flight Unit. Flight Unit destroyed. Critical hit (Burn: +37). Acquired 3 matter. Map ----- +----------------------------------------------------+ | ??????????????????????# | | ??????????????????????# | | ??????????????????????# | | ??????????????????????# ## #########""""#### | | ??????????????????????# ## #???????????????? | | ??????????????????????# # ##???????????????? | | ??????????????????????# # #????????????????? | | ??????????????????????# ## # =#????????????????? | | ???????????????######## #### ##????????????????? | | ???????????????# #?????????????????? | | ???????????????# ###### ####+#?????????????????? | | ??????????????????????# #??? ??????????????????? | | ?????????????????" #### #??? ??????????????????? | | ?????????????????" + + #??? ??????????????????? | | ?????????????????" #### #???#??????????????????? | | ??????????????????????# #??????????????????????? | | ??????????????????????# #??????????????????????? | | ??????????????????????# #??????????????????????? | | ??????????????????????# #??????????????????????? | | ??????????????????????# #??????????????Y???????? | | ??????????????????????# #??????????????????????? | | ??????????????????????# #??????????????????????? | | ??????????????????????# #??????????????????????? | | ??????????????????????# #??????????????????????? | | ?????????????????????## ########???????????????? | | ?????????????????????# g@Y #???????????? | | ?????????????????????## ########???????????????? | | ??????????????????????# Y #??????????????????????? | | ??????????????????????#gg #??????????????????????? | | ??????????????????????# bg#??????????????????????? | | ??????????????????????# #??????????????????????? | | ??????????????????????# %##?????????????????????? | | ??????????????????????# ;#?????????????????????? | | ??????????????????????# ;##????????????????????? | | ??????????????????????# #????????????????????? | | ??????????????????????# < #????????????????????? | | ??????????????????????# #????????????????????? | | ??????????????????????#######????????????????????? | | ?????????????????????????????????????????????????? | | ?????????????????????????????????????????????????? | | ?????????????????????????????????????????????????? | | ?????????????????????????????????????????????????? | | ?????????????????????????????????????????????????? | | ?????????????????????????????????????????????????? | | ?????????????????????????????????????????????????? | | ?????????????????????????????????????????????????? | | | | | | | | | +----------------------------------------------------+ Best States ------------- Heat Dissipation 31 Energy Generation 14 Energy Capacity 250 Matter Stores 283 Matter Capacity 300 Sight Range 16 Terrain Scan Density 10 Additional Mass Support 9 Evasion (%) 63 Item Schematics ----------------- None Robot Schematics ------------------ None Fabricated ------------ Nothing Alien Tech Used ----------------- None Achievements -------------- None Challenges ------------ None Game ------ Seed RecyclingGravitySubcomponent Manual? 0 Play Time 00:13:41 Cumulative 14.8 hours Start 2024.04.04 @ 21:46:17 End 2024.04.04 @ 22:00:13 Sessions 1 Manual Loads 0 Difficulty Rogue Special Mode None Game No. 27 Rogue 27 Adventurer 0 Explorer 0 Win Type - Total 0 Types 0/0/0/0/0/0/0/0/0 Lore% 13 Gallery% 27 Achievement% 24 Wizard Run 0 Options --------- Layout 1 ASCII 0 Keyboard 1 Movement Numpad Keybinds 0 Fullscreen 1 Font 32/SmallcapsGlow Map View 50x35 Zoom Use 0% Tactical HUD 0 Map Filters NONE Filters NONE Steam 1 RUN: 0023752e-e6d2-4c8b-9151-4b9b0432a348